bitfinex/quotes_ETHUSD_20241013
["timestamp","ask_amount","ask_price","bid_price","bid_amount"]
[1728836286227,0.138586,2450.9,2450.8,4.86983487]
[1728836286537,4.07957,2451.3,2450.8,5.35681836]
[1728836286750,4.07957,2451.3,2451.2,2.06913487]
[1728836286900,4.07872,2451.8,2451.3,0.55]
[1728836287237,4.07874,2451.8,2451.3,0.55]
[1728836287452,4.07897,2451.6,2451.3,0.55]
[1728836287596,8.15749,2451.8,2451.3,0.55]
[1728836287802,4.07847,2451.9,2451.6,0.8007]
[1728836288001,0.8074,2452.1,2451.6,1.3507]
[1728836288002,4.0788,2451.7,2451.6,1.3507]
[1728836288600,4.07863,2451.8,2451.6,1.3507]
[1728836288803,4.07863,2451.8,2451.6,5.27865817]
[1728836289258,4.07863,2451.8,2451.6,1.76794935]
[1728836289425,4.0788,2451.7,2451.6,1.76794935]
[1728836289620,4.07865,2451.8,2451.7,0.55]
[1728836291257,4.07847,2451.9,2451.4,3.51070882]
[1728836291258,4.07892,2451.7,2451.4,0.55]
[1728836291444,4.07913,2451.5,2451.4,0.55]
[1728836292266,8.15784,2451.7,2451.4,1.75453517]
[1728836292428,4.07892,2451.7,2451.4,1.75453517]
[1728836292767,4.07892,2451.7,2451.4,5.26524399]
[1728836293081,4.07857,2451.9,2451.6,3.51070882]
[1728836293225,4.07857,2451.9,2451.7,0.55]
[1728836294545,4.07826,2452.1,2451.7,1.03862088]
[1728836294744,0.9200177,2452.3,2451.7,1.03862088]
[1728836295056,4.07855,2451.9,2451.7,0.55]
[1728836295362,4.07833,2452.0,2451.7,0.55]
[1728836295564,4.07852,2451.9,2451.7,0.55]
[1728836295738,4.07852,2451.9,2451.8,1.3755]
[1728836297463,4.0783,2452.0,2451.9,0.55]
[1728836298359,4.21440314,2452.0,2451.9,0.55]
[1728836298674,4.0785,2451.9,2451.7,0.55]
[1728836299348,0.13610314,2451.8,2451.7,0.55]
[1728836299529,4.0783,2452.0,2451.7,1.03932088]
[1728836299729,0.13610314,2451.9,2451.7,1.03932088]
[1728836300652,4.07863,2451.8,2451.7,0.55]
[1728836300858,4.0788,2451.7,2451.5,0.55]
[1728836301068,8.15773,2451.7,2451.5,0.55]
[1728836301252,0.13610314,2451.6,2451.5,0.55]
[1728836301540,4.21506314,2451.6,2451.5,0.55]
[1728836305342,0.13610314,2451.6,2451.5,1.3825]
[1728836305567,0.13610314,2451.6,2451.5,1.91366031]
[1728836307385,0.13610314,2451.6,2451.5,0.55]
[1728836307386,4.21506314,2451.6,2451.5,0.55]
[1728836308689,0.13610314,2451.6,2451.5,0.55]
[1728836308888,4.21506314,2451.6,2451.5,0.55]
[1728836309069,0.13610314,2451.6,2451.5,0.55]
[1728836309246,0.13610314,2451.6,2451.5,1.3825]
[1728836309446,4.07882,2451.7,2451.5,1.3825]
[1728836309642,0.13605644,2451.6,2451.5,1.3825]
[1728836309946,0.13605644,2451.6,2451.5,2.89493256]
[1728836310146,0.13605644,2451.6,2451.5,3.22626525]
[1728836310780,4.07856,2451.9,2451.5,7.30539525]
[1728836310966,4.07856,2451.9,2451.8,1.51243256]
[1728836311299,4.07825,2452.1,2451.9,1.3825]
[1728836311449,4.07825,2452.1,2452.0,1.51243256]
[1728836311651,4.2007077,2452.3,2452.1,0.55]
[1728836311853,4.2007077,2452.3,2452.2,1.51243256]
[1728836312089,4.2007077,2452.3,2452.1,1.51243256]
[1728836312389,4.2006277,2452.3,2452.2,1.51243256]
[1728836312759,4.07805,2452.2,2452.1,1.51243256]
[1728836312962,4.07805,2452.2,2452.1,2.06243256]
[1728836313165,4.2006277,2452.3,2452.1,2.06243256]
[1728836313371,4.2006277,2452.3,2452.2,1.51243256]
[1728836313800,4.2006277,2452.3,2452.1,0.55]
[1728836314004,4.2006277,2452.3,2452.0,0.55]
[1728836314301,0.1228177,2452.3,2452.0,0.55]
[1728836314501,4.2006277,2452.3,2452.0,1.44706822]
[1728836314997,4.2006277,2452.3,2452.1,0.40108569]
[1728836315597,4.07797,2452.2,2452.1,0.95108569]
[1728836316821,4.0783,2452.0,2451.8,0.55]
[1728836317008,4.83797,2452.2,2451.8,0.55]
[1728836317209,4.07797,2452.2,2451.8,5.25644238]
[1728836318521,4.07797,2452.2,2451.9,0.41497251]
[1728836318724,4.07797,2452.2,2452.0,0.55]
[1728836320712,4.07813,2452.1,2452.0,0.55]
[1728836321423,4.07797,2452.2,2452.0,0.55]
[1728836322299,4.07797,2452.2,2452.0,1.13646025]
[1728836322735,0.1228177,2452.3,2452.0,1.13646025]
[1728836322907,4.2006377,2452.3,2452.0,1.13646025]
[1728836323841,4.2006377,2452.3,2452.0,1.2180162]
[1728836324656,0.1228177,2452.3,2452.0,5.2962962]
[1728836325518,0.1228177,2452.3,2452.0,1.2180162]
[1728836325840,0.1228177,2452.3,2452.2,0.55]
[1728836327850,4.9965177,2452.3,2452.0,0.55]
[1728836328050,4.07805,2452.2,2452.0,0.55]
[1728836328353,0.12782023,2452.1,2452.0,0.55]
[1728836329608,4.9965177,2452.3,2452.0,0.55]
[1728836329803,0.12782023,2452.1,2452.0,0.55]
[1728836330048,4.9965177,2452.3,2452.0,0.55]
[1728836330252,0.12782023,2452.1,2452.0,0.55]
[1728836330845,4.2006177,2452.3,2452.0,0.55]
[1728836331010,0.12778896,2452.1,2452.0,0.55]
[1728836331210,4.2006177,2452.3,2452.0,0.55]
[1728836331423,0.12778896,2452.2,2452.0,0.55]
[1728836331621,8.2785077,2452.3,2452.0,0.55]
[1728836331836,0.12778896,2452.2,2452.0,0.55]
[1728836332053,4.20576896,2452.2,2452.0,0.55]
[1728836332348,0.12778896,2452.1,2452.0,0.8536228]
[1728836332547,4.2006177,2452.3,2452.0,0.8536228]
[1728836332924,0.1277186,2452.2,2452.0,0.8536228]
[1728836333320,4.2006177,2452.3,2452.0,0.8536228]
[1728836333642,4.2006177,2452.3,2452.0,0.55]
[1728836333846,0.1277186,2452.2,2452.0,0.55]
[1728836334143,4.2006177,2452.3,2452.0,0.55]
[1728836334353,0.1277186,2452.2,2452.0,0.55]
[1728836334642,4.2006177,2452.3,2452.0,0.55]
[1728836334845,0.1277186,2452.1,2452.0,0.55]
[1728836335050,4.2006177,2452.3,2452.0,0.55]
[1728836335215,0.1228177,2452.3,2452.0,0.55]
[1728836335550,0.1277186,2452.2,2452.0,5.97255547]
[1728836335753,0.1277186,2452.2,2452.0,6.02681377]
[1728836335906,0.1228177,2452.3,2452.1,1.51169179]
[1728836336106,0.1228177,2452.3,2452.2,1.51169179]
[1728836336345,0.1228177,2452.3,2452.2,2.06169179]
[1728836336752,0.1228177,2452.3,2452.1,2.06169179]
[1728836337120,0.1228177,2452.3,2452.2,1.51169179]
[1728836337324,0.1228177,2452.3,2452.2,2.06169179]
[1728836338545,0.1228177,2452.3,2452.2,2.82559179]
[1728836339311,0.1228177,2452.3,2452.2,3.65040652]
[1728836339514,0.1228177,2452.3,2452.2,2.82559179]
[1728836340350,0.1228177,2452.3,2452.2,6.98511278]
[1728836340514,0.1228177,2452.3,2452.2,6.90356179]
[1728836340927,0.1228177,2452.3,2452.2,2.82559179]
[1728836341433,0.1228177,2452.3,2452.2,2.06169179]
[1728836341725,0.1228177,2452.3,2452.2,2.66385861]
[1728836342124,0.1228177,2452.3,2452.2,1.15216682]
[1728836342329,0.1228177,2452.3,2452.2,0.55]
[1728836342529,4.2006177,2452.3,2452.2,0.55]
[1728836343156,0.1228177,2452.3,2452.2,0.55]
[1728836343463,0.1228177,2452.3,2452.2,5.58966179]
[1728836343464,0.25069263,2452.3,2452.2,5.58966179]
[1728836343661,0.25069263,2452.3,2452.2,6.90356179]
[1728836343974,0.25069263,2452.3,2452.2,8.23442959]
[1728836344253,0.25069263,2452.3,2452.2,8.15288515]
[1728836345053,0.25069263,2452.3,2452.2,2.56322336]
[1728836345257,0.25069263,2452.3,2452.2,2.82559179]
[1728836345713,0.25069263,2452.3,2452.2,2.06169179]
[1728836346752,0.25069263,2452.3,2452.2,0.55]
[1728836346941,0.25069263,2452.3,2452.2,2.06169179]
[1728836347251,4.07805,2452.2,2452.0,0.55]
[1728836347431,4.07805,2452.2,2451.9,0.41497251]
[1728836347632,0.12842206,2452.1,2452.0,1.51169179]
[1728836347826,4.07804,2452.2,2451.9,0.41497251]
[1728836348129,0.12825013,2452.1,2451.9,0.41497251]
[1728836349235,4.0783,2452.0,2451.9,0.96497251]
[1728836349689,0.1278124,2452.0,2451.9,0.96497251]
[1728836351478,4.07797,2452.2,2451.9,0.96497251]
[1728836351957,0.12350105,2452.1,2451.9,0.96497251]
[1728836353371,4.20173105,2452.1,2451.9,0.96497251]
[1728836354280,4.0783,2452.0,2451.7,3.0]
[1728836354480,4.07849,2451.9,2451.5,0.55]
[1728836354681,5.75689875,2452.1,2451.5,0.55]
[1728836354844,0.12350105,2451.8,2451.7,0.55]
[1728836355048,5.75689875,2452.1,2451.7,0.55]
[1728836355249,0.12350105,2452.0,2451.7,1.3022]
[1728836356080,4.20181105,2452.0,2451.7,1.3022]
[1728836356271,5.32646236,2452.0,2451.7,0.41057707]
[1728836356581,0.9816698,2452.0,2451.7,0.41057707]
[1728836356793,0.12350105,2452.0,2451.7,4.48935707]
[1728836357023,0.12350105,2452.0,2451.7,4.57092427]
[1728836357204,0.12350105,2452.0,2451.7,0.49214427]
[1728836357382,0.12350105,2452.0,2451.8,0.55]
[1728836358421,0.12350105,2452.0,2451.8,1.89620621]
[1728836358981,4.93622875,2452.2,2451.8,1.89620621]
[1728836359183,0.83196035,2452.1,2451.8,1.89620621]
[1728836359529,0.12338352,2452.1,2451.8,1.89620621]
[1728836360516,5.05969227,2452.1,2451.8,1.89620621]
[1728836360755,4.20152352,2452.1,2451.8,1.89620621]
[1728836361045,0.1228177,2452.3,2452.2,4.62797]
[1728836361331,0.1228177,2452.3,2452.2,4.70811805]
[1728836361628,0.1228177,2452.3,2452.2,7.70811805]
[1728836362182,0.1228177,2452.3,2452.2,10.31767113]
[1728836362414,0.1228177,2452.3,2452.2,12.4011342]
[1728836362621,0.1228177,2452.3,2452.2,11.55047547]
[1728836362787,0.1228177,2452.3,2452.2,12.4011342]
[1728836363813,0.1228177,2452.3,2452.2,11.55047547]
[1728836364015,0.1228177,2452.3,2452.2,12.4011342]
[1728836364181,0.1228177,2452.3,2452.2,13.1533342]
[1728836365225,0.1228177,2452.3,2452.2,13.15303463]
[1728836365748,0.1228177,2452.3,2452.2,13.57867112]
[1728836366041,0.1228177,2452.3,2452.2,15.41071762]
[1728836367296,0.1228177,2452.3,2452.2,13.70899066]
[1728836367519,0.1228177,2452.3,2452.2,14.00410286]
[1728836367737,0.1228177,2452.3,2452.2,15.41071762]
[1728836368140,0.8206,2453.5,2453.1,1.3022]
[1728836368512,0.120007,2453.4,2453.1,1.3022]
[1728836368717,0.120007,2453.4,2453.1,1.2022]
[1728836370551,0.120007,2453.4,2453.1,2.08108278]
[1728836370914,0.120007,2453.4,2452.9,3.55]
[1728836371114,4.07615,2453.3,2452.9,0.55]
[1728836371434,0.85414671,2453.8,2452.9,0.55]
[1728836371435,0.94160155,2453.2,2452.9,0.55]
[1728836371619,0.8206,2453.6,2453.1,0.96371703]
[1728836371955,0.8206,2453.6,2453.2,0.7522]
[1728836371956,0.11700155,2453.5,2453.2,0.7522]
[1728836375270,0.11700155,2453.5,2453.1,0.96371703]
[1728836375436,0.11700155,2453.5,2453.1,1.54390373]
[1728836375829,4.19286155,2453.5,2453.1,0.96371703]
[1728836376338,0.11700155,2453.5,2453.1,0.96371703]
[1728836376534,4.19282155,2453.5,2453.1,0.96371703]
[1728836377379,0.11700155,2453.5,2453.1,0.96371703]
[1728836378253,0.11700155,2453.5,2453.1,5.04017703]
[1728836378555,4.19292155,2453.5,2453.1,0.96371703]
[1728836378753,4.07623,2453.3,2453.1,0.41371703]
[1728836379065,0.7699,2453.4,2452.6,8.15442]
[1728836379066,4.07638,2453.2,2452.6,8.15442]
[1728836379267,4.07675,2453.0,2452.9,0.40568415]
[1728836379470,0.11697022,2453.0,2452.9,0.40568415]
[1728836379860,4.19361022,2453.0,2452.9,0.40568415]
[1728836380188,4.07701,2452.8,2452.7,0.41499707]
[1728836380660,0.11676668,2452.8,2452.7,0.41499707]
[1728836381845,0.11676668,2452.8,2452.7,0.96499707]
[1728836382049,4.07671,2453.0,2452.7,0.96499707]
[1728836382248,0.11657093,2452.8,2452.7,0.96499707]
[1728836382547,4.07671,2453.0,2452.7,0.96499707]
[1728836382748,4.96344093,2452.8,2452.1,4.07797]
[1728836382992,4.84687,2452.8,2452.3,4.90029]
[1728836383313,0.11657093,2452.7,2452.3,4.90029]
[1728836383660,4.84687,2452.8,2452.3,4.90029]
[1728836383863,0.1163987,2452.6,2452.3,4.90029]
[1728836384089,4.07731,2452.6,2452.4,0.55]
[1728836384291,0.1163987,2452.5,2452.3,0.55]
[1728836384449,4.1940187,2452.5,2452.3,0.55]
[1728836384656,4.1940187,2452.5,2452.4,0.40141198]
[1728836384893,4.9639187,2452.5,2452.4,0.40141198]
[1728836385189,4.07769,2452.4,2451.9,0.8225]
[1728836385359,4.07782,2452.3,2451.9,0.8225]
[1728836385566,4.19385844,2452.3,2451.9,0.8225]
[1728836385964,4.19385844,2452.3,2452.1,0.40034972]
[1728836387096,4.19385844,2452.3,2451.9,0.55]
[1728836387301,4.19385844,2452.3,2451.9,1.85398878]
[1728836388093,4.07799,2452.2,2451.9,1.85398878]
[1728836388272,0.11599928,2452.2,2451.9,1.85398878]
[1728836388475,4.0778,2452.3,2451.9,1.85398878]
[1728836388702,0.11599928,2452.1,2451.9,1.85398878]
[1728836388878,0.11599928,2452.1,2452.0,0.95124881]
[1728836389078,4.0778,2452.3,2452.0,0.40124881]
[1728836389277,0.11599928,2452.1,2452.0,0.95124881]
[1728836389498,4.0778,2452.3,2452.0,0.40124881]
[1728836389680,0.11599928,2452.1,2452.0,0.95124881]
[1728836390006,4.07806,2452.2,2452.0,0.95124881]
[1728836390181,0.11599928,2452.1,2452.0,0.95124881]
[1728836390385,4.19412928,2452.1,2451.7,3.8225]
[1728836390699,4.19412928,2452.1,2451.8,0.55]
[1728836391168,0.11599928,2452.1,2451.9,3.51008784]
[1728836391373,0.11599928,2452.1,2452.0,5.4508]
[1728836391593,4.8482,2452.0,2451.9,0.40145313]
[1728836391790,4.07908,2451.6,2451.1,0.8225]
[1728836392108,4.07908,2451.6,2450.9,4.07999]
[1728836392109,0.7699,2451.4,2451.2,0.490245]
[1728836392264,4.84921,2451.4,2450.9,4.9025]
[1728836392609,8.92867,2451.4,2450.8,2.0]
[1728836392769,0.11530993,2451.3,2451.1,0.41841191]
[1728836396816,0.11530993,2451.3,2451.1,0.55]
[1728836398293,4.07802,2452.2,2452.1,0.12]
[1728836398491,0.49321667,2452.2,2452.1,0.12]
[1728836398906,1.25911667,2452.2,2452.1,0.12]
[1728836400020,5.33708667,2452.2,2452.1,0.12]
[1728836400317,1.25911667,2452.2,2452.1,0.12]
[1728836400682,5.33708667,2452.2,2452.1,0.12]
[1728836401025,8.33708667,2452.2,2452.1,0.12]
[1728836402021,0.7565,2451.9,2451.4,0.55]
[1728836402243,0.7565,2451.9,2451.4,4.62928]
[1728836402938,0.7565,2451.9,2451.4,9.93044678]
[1728836403235,0.7565,2451.9,2451.5,3.51008784]
[1728836403608,0.7565,2451.9,2451.5,7.58916784]
[1728836404009,0.7565,2451.9,2451.5,8.39756784]
[1728836404207,0.7565,2451.9,2451.6,4.07895]
[1728836404431,0.7565,2452.1,2451.7,4.07869]
[1728836404602,0.7565,2452.1,2451.8,4.07859]
[1728836404997,0.7565,2452.3,2451.7,7.58877784]
[1728836405232,0.7565,2452.3,2451.8,4.07852]
[1728836405696,0.7565,2452.3,2451.9,4.88674]
[1728836405905,0.09997768,2452.2,2452.0,0.488674]
[1728836406098,0.7565,2452.3,2452.1,4.0781]
[1728836406298,0.7565,2452.5,2452.1,4.0781]
[1728836407897,4.83407,2452.5,2452.0,0.55]
[1728836408132,0.7565,2452.2,2451.8,4.07857]
[1728836408298,0.7565,2452.2,2451.9,4.07845]
[1728836409042,0.7565,2452.2,2451.7,8.39716784]
[1728836409199,4.83455,2452.2,2451.8,0.55]
[1728836409410,9.803887,2452.2,2451.7,4.07879]
[1728836410048,5.725777,2452.2,2451.7,4.07879]
[1728836410204,5.725777,2452.2,2451.8,4.07863]
[1728836410205,4.83455,2452.2,2451.8,4.07863]
[1728836410745,4.83455,2452.2,2451.7,7.58887784]
[1728836411234,8.91267,2452.2,2451.7,4.07879]
[1728836411399,4.07813,2452.1,2451.7,4.07879]
[1728836411939,0.7565,2452.0,2451.5,7.58908784]
[1728836412152,0.7565,2452.0,2451.4,0.41836675]
[1728836412153,4.07854,2451.9,2451.4,0.41836675]
[1728836412436,4.07854,2451.9,2451.4,4.49755675]
[1728836412942,4.07854,2451.9,2451.4,0.41836675]
[1728836413099,4.07854,2451.9,2451.4,4.49758675]
[1728836414226,4.969869,2451.9,2451.4,4.49758675]
[1728836414739,4.07872,2451.8,2451.4,0.41836675]
[1728836415040,0.8232,2451.7,2451.4,4.49761675]
[1728836416928,4.90209,2451.7,2451.4,0.41836675]
[1728836417128,5.800157,2451.7,2451.4,0.41836675]
[1728836418153,5.800067,2451.7,2451.4,0.41836675]
[1728836418647,0.1000719,2451.6,2451.4,0.41836675]
[1728836420022,4.1790419,2451.6,2451.1,7.58987784]
[1728836420208,0.1000719,2451.6,2451.1,7.58987784]
[1728836420406,4.07914,2451.5,2451.1,7.58987784]
[1728836420970,8.15836,2451.5,2451.2,0.40201621]
[1728836421111,8.15836,2451.5,2450.9,7.59021784]
[1728836421112,0.7512,2451.3,2450.9,7.59021784]
[1728836422453,0.7512,2451.3,2450.9,11.67025784]
[1728836422813,0.7512,2451.3,2450.9,7.59012784]
[1728836423012,4.83067,2451.3,2450.9,7.59012784]
[1728836423243,0.7512,2451.3,2450.9,11.67016784]
[1728836423451,0.7512,2451.3,2451.0,4.07993]
[1728836423621,0.7512,2451.3,2451.0,4.49057194]
[1728836424712,0.7512,2451.3,2451.1,3.51008784]
[1728836425924,0.7512,2451.3,2451.1,7.58986784]
[1728836426113,4.83034,2451.5,2451.1,7.58986784]
[1728836426317,0.7512,2451.5,2451.1,7.58976784]
[1728836426751,4.83009,2451.7,2451.3,7.58952784]
[1728836429819,4.83009,2451.7,2451.3,3.51008784]
[1728836430873,8.90898,2451.7,2451.3,3.51008784]
[1728836431029,4.83009,2451.7,2451.3,3.51008784]
[1728836431229,0.7512,2451.7,2451.3,7.58952784]
[1728836431958,4.83001,2451.7,2451.3,7.58952784]
[1728836432647,4.83001,2451.7,2451.3,3.51008784]
[1728836433750,0.09894896,2451.6,2451.3,3.51008784]
[1728836434351,4.17791896,2451.6,2451.3,3.51008784]
[1728836434726,0.7881,2451.5,2451.1,3.51008784]
[1728836435121,4.17832963,2451.4,2451.1,3.51008784]
[1728836435716,0.09901963,2451.4,2451.1,3.51008784]
[1728836436002,0.09901963,2451.4,2451.0,0.41064194]
[1728836436358,4.07932,2451.4,2451.0,0.41064194]
[1728836436565,4.17840323,2451.3,2451.0,0.41064194]
[1728836436861,4.0798,2451.1,2450.9,0.7729]
[1728836437058,4.0798,2451.1,2450.8,5.0]
[1728836437364,0.09893323,2451.0,2450.8,5.0]
[1728836437769,4.08013,2450.9,2450.8,2.0]
[1728836438163,5.79295585,2450.9,2450.8,2.0]
[1728836440201,9.48812419,2450.9,2450.8,2.0]
[1728836440504,9.48809895,2450.9,2450.8,2.0]
[1728836440817,8.79295585,2450.9,2450.8,2.0]
[1728836444596,4.96703753,2450.9,2450.8,2.0]
[1728836444838,4.17893753,2450.9,2450.8,2.0]
[1728836445932,0.09880753,2450.9,2450.8,2.0]
[1728836446345,4.07958,2451.3,2450.8,6.85306]
[1728836446498,4.07958,2451.3,2450.9,3.51008784]
[1728836446701,4.07958,2451.3,2450.9,4.54640262]
[1728836447438,4.07925,2451.5,2451.1,4.28298784]
[1728836448015,4.07925,2451.5,2451.1,8.36274784]
[1728836448217,4.0789,2451.7,2451.3,3.51008784]
[1728836448738,0.0986504,2451.6,2451.3,7.58954784]
[1728836448950,0.0986504,2451.6,2451.3,8.8741005]
[1728836449108,4.07864,2451.8,2451.3,8.8741005]
[1728836449310,0.0986504,2451.7,2451.3,8.8741005]
[1728836449643,4.07864,2451.8,2451.3,8.8741005]
[1728836449849,0.0986504,2451.6,2451.3,4.7946405]
[1728836450005,4.07893,2451.7,2451.3,4.7946405]
[1728836450205,0.0986504,2451.5,2451.3,4.07937]
[1728836450435,4.07876,2451.8,2451.3,7.58945784]
[1728836450705,4.86658,2451.9,2451.4,4.85211]
[1728836450930,0.0986504,2451.8,2451.4,4.85211]
[1728836451661,0.0986504,2451.8,2451.4,6.19162666]
[1728836451846,0.0986504,2451.8,2451.6,4.07892]
[1728836452054,0.0986504,2451.8,2451.6,4.07894]
[1728836452378,0.09901963,2451.7,2451.6,4.07894]
[1728836452525,0.09901963,2451.7,2451.5,7.58918784]
[1728836452724,4.07831,2452.0,2451.6,1.37808045]
[1728836452919,4.07831,2452.0,2451.4,4.8521]
[1728836452920,0.09901963,2451.6,2451.4,0.7729]
[1728836453225,4.07844,2452.0,2451.5,7.58920784]
[1728836454263,4.07844,2452.0,2451.5,3.51008784]
[1728836454264,4.07853,2451.9,2451.5,3.51008784]
[1728836455060,4.07872,2451.8,2451.4,0.7729]
[1728836455267,4.07872,2451.8,2451.2,4.4831288]
[1728836455268,4.07906,2451.6,2451.2,4.2319988]
[1728836455771,4.07905,2451.6,2451.2,4.2319988]
[1728836455984,8.15817,2451.6,2451.2,4.2319988]
[1728836456170,8.15817,2451.6,2451.2,5.82217646]
[1728836456171,4.07905,2451.6,2451.2,5.82217646]
[1728836456486,4.07914,2451.5,2451.2,5.82217646]
[1728836458654,4.07899,2451.6,2451.2,5.82217646]
[1728836458881,4.07899,2451.6,2451.3,3.51008784]
[1728836459757,4.07881,2451.7,2451.3,3.51008784]
[1728836460086,4.07881,2451.7,2451.3,4.44331427]
[1728836460492,8.15769,2451.7,2451.3,4.44331427]
[1728836460787,4.07881,2451.7,2451.3,4.44331427]
[1728836461162,4.07908,2451.6,2451.3,4.44331427]
[1728836461571,4.07864,2451.8,2451.3,4.44331427]
[1728836461795,4.07864,2451.8,2451.4,5.35476431]
[1728836462094,4.07883,2451.7,2451.4,1.27548431]
[1728836462308,4.07864,2451.8,2451.4,1.27548431]
[1728836462507,8.15737,2451.8,2451.4,1.27548431]
[1728836462720,4.07843,2452.0,2451.5,4.33848784]
[1728836462900,8.15682,2452.0,2451.5,9.38688206]
[1728836463215,4.93253671,2452.0,2451.5,9.38688206]
[1728836463518,0.09905893,2451.9,2451.5,9.38688206]
[1728836463667,4.17760893,2451.9,2451.5,5.30780206]
[1728836463872,4.07871,2451.8,2451.5,5.30780206]
[1728836464071,4.07871,2451.8,2451.5,1.79771422]
[1728836464281,0.09905893,2451.7,2451.5,1.79771422]
[1728836464496,4.07848,2451.9,2451.5,0.8284]
[1728836464708,0.85414671,2452.0,2451.8,3.51008784]
[1728836464870,4.07821,2452.1,2451.8,3.51008784]
[1728836465071,4.93220671,2452.2,2451.6,7.58895784]
[1728836465275,0.69479848,2452.1,2451.8,0.7553]
[1728836465474,0.69479848,2452.1,2451.8,4.83392]
[1728836465702,13.12545671,2452.3,2451.8,8.34400784]
[1728836465916,0.69475186,2452.2,2451.8,8.34400784]
[1728836466212,4.07804,2452.2,2451.8,3.51008784]
[1728836466388,4.07822,2452.1,2451.7,0.84173578]
[1728836466905,4.07797,2452.2,2451.8,0.7553]
[1728836467709,0.7535,2452.1,2451.7,0.84173578]
[1728836467913,4.83172,2452.1,2451.7,0.84173578]
[1728836468206,4.83172,2452.1,2451.7,4.92047578]
[1728836468407,4.83172,2452.1,2451.7,5.67577578]
[1728836468610,4.07822,2452.1,2451.7,5.67577578]
[1728836469707,4.07822,2452.1,2451.7,1.59703578]
[1728836469931,0.7535,2452.1,2451.4,8.34455784]
[1728836470115,4.07854,2451.9,2451.4,8.34455784]
[1728836471213,7.44,2452.3,2451.8,3.51008784]
[1728836471421,7.44,2452.3,2451.9,4.07846]
[1728836471601,0.7535,2452.2,2451.8,3.51008784]
[1728836471830,11.51793,2452.3,2451.8,3.51008784]
[1728836471996,7.44,2452.3,2451.8,3.51008784]
[1728836472205,7.44,2452.3,2451.9,4.07844]
[1728836473097,7.44,2452.3,2452.1,0.7714]
[1728836473297,4.07755,2452.5,2452.1,0.7714]
[1728836474496,0.85383944,2452.6,2452.1,0.7714]
[1728836474853,2.58926593,2452.6,2452.4,3.51008784]
[1728836474995,4.07723,2452.7,2452.2,8.13792784]
[1728836475333,4.07722,2452.7,2452.2,4.06008784]
[1728836475693,4.07722,2452.7,2452.2,8.13800784]
[1728836476103,4.84118,2452.3,2451.8,4.96796278]
[1728836476325,4.84118,2452.3,2451.8,4.96795278]
[1728836477006,4.84118,2452.3,2451.8,0.88940278]
[1728836477519,4.07803,2452.2,2451.8,0.88940278]
[1728836478323,0.09345159,2452.1,2451.8,0.88940278]
[1728836478712,0.09345159,2452.1,2451.9,0.96659006]
[1728836478910,0.7633,2452.0,2451.5,0.30341933]
[1728836479226,4.07873,2451.8,2451.5,0.30341933]
[1728836479532,4.07896,2451.6,2451.5,0.30341933]
[1728836479737,0.09333342,2451.6,2451.5,0.30341933]
[1728836479925,4.07873,2451.8,2451.5,0.30341933]
[1728836480122,4.17214342,2451.7,2451.5,0.30341933]
[1728836480320,4.07896,2451.6,2451.5,0.30341933]
[1728836480642,4.07896,2451.6,2451.1,8.36115784]
[1728836480816,4.17215949,2451.6,2451.2,0.55]
[1728836481417,4.07915,2451.5,2451.1,10.12006919]
[1728836481947,0.09319949,2451.4,2451.1,10.12006919]
[1728836482360,0.09319949,2451.4,2451.3,3.51008784]
[1728836482571,4.07896,2451.6,2451.3,3.51008784]
[1728836482759,0.09319949,2451.4,2451.3,4.52209476]
[1728836482937,4.07896,2451.6,2451.3,4.52209476]
[1728836483259,0.09319949,2451.5,2451.3,4.52209476]
[1728836483470,0.09319949,2451.5,2451.3,8.60155476]
[1728836483670,0.09319949,2451.5,2451.4,0.86015548]
[1728836483841,4.07876,2451.8,2451.4,0.86015548]
[1728836484360,0.09301039,2451.7,2451.4,0.86015548]
[1728836484766,8.15749,2451.8,2451.4,0.86015548]
[1728836484963,0.09301039,2451.6,2451.4,0.86015548]
[1728836485276,4.07849,2451.9,2451.6,0.7714]
[1728836485442,4.07814,2452.1,2451.7,3.51008784]
[1728836485627,7.44,2452.2,2451.9,3.51008784]
[1728836485833,11.51798,2452.2,2451.9,3.51008784]
[1728836486078,4.07783,2452.3,2452.0,0.7714]
[1728836486364,4.07769,2452.4,2452.1,3.93823662]
[1728836486729,4.07753,2452.5,2452.1,3.93823662]
[1728836487054,4.07691,2452.9,2452.4,4.6276]
[1728836487230,4.07691,2452.9,2452.6,3.51008784]
[1728836488143,4.07698,2452.8,2452.6,3.51008784]
[1728836488345,4.07698,2452.8,2452.4,3.51008784]
[1728836488541,4.07698,2452.8,2452.5,0.55]
[1728836488971,4.07722,2452.7,2452.2,8.35933784]
[1728836489170,8.15444,2452.7,2452.3,1.42874866]
[1728836489396,8.15379,2452.9,2452.4,4.07753]
[1728836489668,2.04405916,2453.2,2452.4,3.51008784]
[1728836489669,4.07708,2452.8,2452.4,3.51008784]
[1728836489867,8.15419,2452.8,2452.4,3.51008784]
[1728836490041,4.07716,2452.7,2452.4,3.51008784]
[1728836490569,4.07731,2452.6,2452.4,3.51008784]
[1728836492560,4.07765,2452.4,2452.2,4.28148784]
[1728836492764,4.07731,2452.6,2452.2,5.4602705]
[1728836493273,4.07751,2452.5,2452.2,5.4602705]
[1728836493456,0.09353817,2452.5,2452.2,5.4602705]
[1728836493651,4.07766,2452.4,2452.2,4.28148784]
[1728836493883,0.09353817,2452.5,2452.2,4.28148784]
[1728836494083,4.0775,2452.5,2452.2,4.28148784]
[1728836494268,0.09353817,2452.4,2452.2,4.28148784]
[1728836496680,4.17117817,2452.4,2452.2,3.51008784]
[1728836497860,0.09353817,2452.4,2452.2,3.51008784]
[1728836498292,4.07748,2452.5,2452.2,3.51008784]
[1728836498465,0.09345943,2452.3,2452.2,3.51008784]
[1728836498663,4.07763,2452.4,2452.2,3.51008784]
[1728836498862,0.09345943,2452.3,2452.2,3.51008784]
[1728836499361,4.07747,2452.5,2452.2,3.51008784]
[1728836499561,0.09345943,2452.3,2452.2,3.51008784]
[1728836499795,4.07741,2452.6,2452.2,3.51008784]
[1728836500012,0.09345943,2452.3,2452.2,3.51008784]
[1728836500165,4.07741,2452.6,2452.2,3.51008784]
[1728836500369,0.09345943,2452.3,2452.2,3.51008784]